bitfinex/quotes_BTCUSD_20241203
["timestamp","ask_amount","ask_price","bid_price","bid_amount"]
[1733243748294,0.001,95702.0,95698.0,0.41798]
[1733243748514,0.15,95714.0,95701.0,0.208984]
[1733243748730,0.15,95714.0,95702.0,0.00184922]
[1733243749023,0.00656223,95713.0,95707.0,0.208969]
[1733243749233,0.358942,95720.0,95702.0,0.208982]
[1733243749464,0.00549885,95712.0,95708.0,0.208967]
[1733243749688,0.358943,95720.0,95709.0,0.00184919]
[1733243749689,0.15,95720.0,95709.0,0.00184919]
[1733243749901,0.15,95720.0,95703.0,0.00184919]
[1733243750126,0.00550695,95719.0,95703.0,0.10656178]
[1733243750601,0.00550695,95719.0,95703.0,0.10471259]
[1733243751031,0.00550695,95719.0,95701.0,0.208983]
[1733243751032,0.208962,95712.0,95701.0,0.208983]
[1733243751244,0.208962,95712.0,95699.0,0.0755]
[1733243751575,0.00660704,95711.0,95693.0,0.00017638]
[1733243751789,0.208987,95700.0,95693.0,0.00017638]
[1733243751987,0.208999,95694.0,95693.0,0.00017638]
[1733243752189,0.15,95704.0,95701.0,0.001]
[1733243752613,0.15,95702.0,95701.0,0.001]
[1733243753535,0.15,95702.0,95696.0,0.0008651]
[1733243753783,0.15,95700.0,95696.0,0.0008651]
[1733243754960,0.001,95702.0,95701.0,0.006]
[1733243755163,0.208977,95705.0,95696.0,0.0008651]
[1733243755400,0.15,95704.0,95696.0,0.0028651]
[1733243755650,0.001,95700.0,95696.0,0.0098651]
[1733243755857,0.001,95700.0,95696.0,0.0078651]
[1733243756282,0.001,95700.0,95697.0,0.208992]
[1733243756755,0.04184,95707.0,95696.0,0.0008651]
[1733243756975,0.15,95706.0,95696.0,0.0008651]
[1733243757197,0.001,95702.0,95701.0,0.006]
[1733243757406,0.001,95702.0,95696.0,0.0008651]
[1733243757632,0.151,95700.0,95697.0,0.007]
[1733243758089,0.15,95700.0,95696.0,0.0008651]
[1733243758300,0.15,95700.0,95696.0,0.0068651]
[1733243758510,0.15,95700.0,95696.0,0.0028651]
[1733243758511,0.358986,95700.0,95696.0,0.0028651]
[1733243758733,0.358986,95700.0,95696.0,0.0008651]
[1733243759207,0.15,95701.0,95697.0,0.002]
[1733243759418,0.208986,95700.0,95697.0,0.002]
[1733243759632,0.15,95701.0,95696.0,0.0008651]
[1733243760052,0.15,95701.0,95696.0,0.0028651]
[1733243760291,0.208986,95700.0,95696.0,0.0028651]
[1733243760555,0.001,95700.0,95697.0,0.007]
[1733243760779,0.208988,95700.0,95696.0,0.0028651]
[1733243761002,0.208986,95700.0,95696.0,0.0098651]
[1733243761214,0.15,95702.0,95696.0,0.0028651]
[1733243761425,0.15,95702.0,95696.0,0.0008651]
[1733243761636,0.001,95700.0,95696.0,0.0078651]
[1733243761917,0.208988,95699.0,95697.0,0.002]
[1733243762143,0.208974,95706.0,95697.0,0.002]
[1733243762144,0.15,95698.0,95697.0,0.002]
[1733243762364,0.208992,95697.0,95696.0,0.0078651]
[1733243762581,0.208992,95697.0,95696.0,0.0098651]
[1733243763043,0.21566846,95697.0,95696.0,0.0078651]
[1733243763531,0.21566846,95697.0,95696.0,0.0008651]
[1733243763532,0.21789394,95697.0,95696.0,0.0008651]
[1733243763769,0.21789394,95697.0,95696.0,0.0068651]
[1733243763986,0.21789394,95697.0,95696.0,0.0008651]
[1733243764417,0.00890194,95697.0,95696.0,0.0018651]
[1733243764630,0.26361453,95697.0,95696.0,0.0018651]
[1733243766101,0.00890194,95697.0,95696.0,0.0018651]
[1733243767872,0.00890194,95697.0,95696.0,0.21270947]
[1733243768064,0.004183,95716.0,95696.0,0.10657769]
[1733243768331,0.208944,95720.0,95703.0,0.208979]
[1733243768782,0.208937,95723.0,95703.0,0.208979]
[1733243768783,0.208945,95719.0,95703.0,0.208979]
[1733243768995,0.250774,95723.0,95703.0,0.208979]
[1733243769199,0.15,95718.0,95696.0,0.31557169]
[1733243769406,0.15,95711.0,95696.0,0.31557169]
[1733243769642,0.358964,95711.0,95696.0,0.0018651]
[1733243769906,0.00736656,95708.0,95696.0,0.0018651]
[1733243770118,0.208979,95704.0,95696.0,0.0018651]
[1733243770322,0.208979,95704.0,95696.0,0.0008651]
[1733243770537,0.00735127,95703.0,95696.0,0.0008651]
[1733243771628,0.0792,95702.0,95696.0,0.0078651]
[1733243771835,0.0792,95702.0,95696.0,0.0028651]
[1733243771836,0.358992,95697.0,95696.0,0.0028651]
[1733243772083,0.46370459,95697.0,95696.0,0.0028651]
[1733243772296,0.46370459,95697.0,95696.0,0.0068651]
[1733243772297,0.47102737,95697.0,95696.0,0.0068651]
[1733243772507,0.47102737,95697.0,95696.0,0.0088651]
[1733243772712,0.43462737,95697.0,95696.0,0.0088651]
[1733243773786,0.43462737,95697.0,95696.0,0.0068651]
[1733243774206,0.43762737,95697.0,95696.0,0.0008651]
[1733243774693,0.43462737,95697.0,95696.0,0.0008651]
[1733243775125,0.43862737,95697.0,95696.0,0.0008651]
[1733243775538,0.44162737,95697.0,95696.0,0.0008651]
[1733243776450,0.33691478,95697.0,95696.0,0.0008651]
[1733243777360,0.44162737,95697.0,95696.0,0.0008651]
[1733243779319,0.33691478,95697.0,95696.0,0.0008651]
[1733243779753,0.3364132,95697.0,95696.0,0.0008651]
[1733243780475,0.71802579,95697.0,95696.0,0.0008651]
[1733243780695,0.51802579,95697.0,95696.0,0.0008651]
[1733243781779,0.51776093,95697.0,95696.0,0.0008651]
[1733243783322,0.2259,95677.0,95676.0,0.27938879]
[1733243783560,0.209061,95666.0,95664.0,0.27938879]
[1733243783809,0.15,95669.0,95652.0,0.0783]
[1733243784028,0.00647262,95665.0,95652.0,0.35768879]
[1733243784281,0.15,95669.0,95654.0,0.209086]
[1733243784517,0.209064,95665.0,95653.0,0.27938879]
[1733243784756,0.209064,95665.0,95652.0,0.0783]
[1733243784757,0.15,95671.0,95652.0,0.35768879]
[1733243784954,0.209071,95662.0,95652.0,0.35768879]
[1733243785171,0.20351632,95658.0,95649.0,0.00017641]
[1733243785380,0.20351632,95658.0,95650.0,0.023]
[1733243785591,0.00643702,95657.0,95650.0,0.023]
[1733243785841,0.15,95660.0,95649.0,0.00017641]
[1733243786034,0.209083,95656.0,95649.0,0.00017641]
[1733243786251,0.21551997,95656.0,95649.0,0.00017641]
[1733243786476,0.20909,95653.0,95649.0,0.00017641]
[1733243786703,0.00643268,95655.0,95649.0,0.00017641]
[1733243786910,0.0064283,95652.0,95649.0,0.00017641]
[1733243787156,0.15,95658.0,95649.0,0.00017641]
[1733243787366,0.00643143,95651.0,95649.0,0.00017641]
[1733243787700,0.209089,95653.0,95649.0,0.00017641]
[1733243787789,0.418178,95653.0,95650.0,0.28338879]
[1733243787997,0.418178,95653.0,95650.0,0.27938879]
[1733243788217,0.418178,95653.0,95651.0,0.27938879]
[1733243788882,0.209089,95653.0,95651.0,0.27938879]
[1733243789165,0.20882629,95653.0,95651.0,0.27938879]
[1733243789368,0.20882629,95653.0,95652.0,0.27938879]
[1733243789369,0.20982629,95653.0,95652.0,0.27938879]
[1733243789575,0.001,95653.0,95652.0,0.27938879]
[1733243790265,0.001,95653.0,95650.0,0.28783674]
[1733243790736,0.001,95653.0,95652.0,0.209091]
[1733243791183,0.001,95653.0,95650.0,0.62849122]
[1733243791184,0.001,95653.0,95650.0,0.41939822]
[1733243791407,0.001,95653.0,95650.0,0.0068632]
[1733243791635,0.001,95653.0,95652.0,0.28090637]
[1733243791841,0.001,95653.0,95651.0,0.28090637]
[1733243792258,0.001,95653.0,95650.0,0.0068632]
[1733243792259,0.00632467,95652.0,95650.0,0.0068632]
[1733243792715,0.001,95653.0,95650.0,0.0068632]
[1733243793154,0.209072,95661.0,95650.0,0.0008632]
[1733243793566,0.001,95653.0,95651.0,0.006]
[1733243794044,0.001,95653.0,95651.0,0.215092]
[1733243794466,0.15,95663.0,95651.0,0.418185]
[1733243794693,0.00632711,95652.0,95650.0,0.0068632]
[1733243794905,0.15,95663.0,95651.0,0.209093]
[1733243795113,0.15,95664.0,95651.0,0.209093]
[1733243795407,0.00633226,95662.0,95651.0,0.209093]
[1733243795569,0.00634844,95663.0,95651.0,0.209093]
[1733243795791,0.00633221,95661.0,95651.0,0.209093]
[1733243795995,0.2154193,95662.0,95650.0,0.0008632]
[1733243796196,0.00634918,95660.0,95650.0,0.2099572]
[1733243796406,0.001,95653.0,95651.0,0.006]
[1733243796607,0.001,95653.0,95650.0,0.2099572]
[1733243797029,0.001,95653.0,95651.0,0.002]
[1733243797244,0.209069,95662.0,95651.0,0.0018]
[1733243797463,0.15,95664.0,95651.0,0.0018]
[1733243797927,0.00635144,95663.0,95657.0,0.20908]
[1733243798147,0.001,95653.0,95652.0,0.20909]
[1733243798648,0.001,95653.0,95650.0,0.2159572]
[1733243798821,0.001,95653.0,95650.0,0.0068632]
[1733243799270,0.359066,95664.0,95651.0,0.209093]
[1733243799727,0.359066,95664.0,95652.0,0.209091]
[1733243799948,0.15,95665.0,95650.0,0.0008632]
[1733243800169,0.15,95663.0,95650.0,0.0008632]
[1733243800381,0.001,95653.0,95650.0,0.0068632]
[1733243800595,0.15,95663.0,95650.0,0.0008632]
[1733243801045,0.209069,95662.0,95650.0,0.0008632]
[1733243801265,0.209073,95660.0,95650.0,0.0008632]
[1733243801675,0.209071,95661.0,95650.0,0.0008632]
[1733243802190,0.209062,95665.0,95650.0,0.0008632]
[1733243802325,0.15,95664.0,95655.0,0.209084]
[1733243802537,0.15,95664.0,95651.0,0.0008636]
[1733243803038,0.15,95662.0,95651.0,0.0008636]
[1733243803669,0.15,95662.0,95651.0,0.2099556]
[1733243803882,0.15,95660.0,95651.0,0.0008636]
[1733243804086,0.209091,95652.0,95651.0,0.0008636]
[1733243804306,0.209091,95652.0,95651.0,0.0018636]
[1733243805459,0.359091,95652.0,95651.0,0.0008636]
[1733243805919,0.360091,95652.0,95651.0,0.0068636]
[1733243806146,0.359091,95652.0,95651.0,0.0008636]
[1733243806578,0.359091,95652.0,95651.0,0.0048636]
[1733243806797,0.46380359,95652.0,95651.0,0.0048636]
[1733243807270,0.46580359,95652.0,95651.0,0.0048636]
[1733243807489,0.47412269,95652.0,95651.0,0.0048636]
[1733243807921,0.47212269,95652.0,95651.0,0.0048636]
[1733243808387,0.2204101,95652.0,95651.0,0.0048636]
[1733243808586,0.0093191,95652.0,95651.0,0.0008636]
[1733243808817,0.0133191,95652.0,95651.0,0.0008636]
[1733243809108,0.0093191,95652.0,95651.0,0.0008636]
[1733243809513,0.008,95652.0,95651.0,0.0018636]
[1733243809754,0.0017272,95664.0,95652.0,0.209091]
[1733243810004,0.209067,95663.0,95653.0,0.209089]
[1733243810213,0.00632114,95663.0,95651.0,0.0008636]
[1733243810452,0.00632114,95663.0,95652.0,0.023]
[1733243810697,0.00632114,95663.0,95660.0,0.418144]
[1733243810911,0.0017272,95664.0,95660.0,0.418144]
[1733243811119,0.0017272,95664.0,95660.0,0.438144]
[1733243811330,0.0017272,95664.0,95660.0,0.02]
[1733243811979,0.00634046,95663.0,95660.0,0.229073]
[1733243812197,0.0017272,95664.0,95660.0,0.229073]
[1733243814497,0.0017272,95664.0,95661.0,0.21092017]
[1733243814945,0.0017272,95664.0,95661.0,0.41814]
[1733243815174,0.0017272,95664.0,95661.0,0.20907]
[1733243815391,0.0017272,95664.0,95661.0,0.418141]
[1733243816487,0.0027272,95664.0,95661.0,0.424141]
[1733243820438,0.0027272,95664.0,95662.0,0.10471259]
[1733243820662,0.0027272,95664.0,95663.0,0.209067]
[1733243820967,0.0027272,95664.0,95663.0,0.44282947]
[1733243821147,0.0027272,95664.0,95663.0,0.72673959]
[1733243821342,0.0017272,95664.0,95663.0,0.72673959]
[1733243821788,0.0027272,95664.0,95663.0,0.72673959]
[1733243822008,0.0017272,95664.0,95663.0,0.72673959]
[1733243822755,0.0027272,95664.0,95663.0,0.73273959]
[1733243823410,0.0027272,95664.0,95663.0,0.73573959]
[1733243825174,0.0017264,95697.0,95663.0,0.73573959]
[1733243825175,0.0017264,95697.0,95684.0,0.0782]
[1733243825391,0.0017264,95697.0,95675.0,0.49025835]
[1733243825609,0.0017264,95697.0,95674.0,0.28]
[1733243825839,0.208997,95695.0,95675.0,0.209041]
[1733243826292,0.10471259,95696.0,95676.0,0.209038]
[1733243826295,0.10471259,95696.0,95674.0,0.28]
[1733243826508,0.209034,95679.0,95674.0,0.00017641]
[1733243826729,0.209021,95685.0,95674.0,0.00017641]
[1733243826966,0.209021,95685.0,95671.0,0.209048]
[1733243826967,0.00546634,95678.0,95671.0,0.19832481]
[1733243827185,0.209053,95670.0,95663.0,0.003]
[1733243827439,0.209053,95670.0,95667.0,0.00017647]
[1733243827688,0.209056,95668.0,95667.0,0.00017647]
[1733243828109,0.21449435,95668.0,95667.0,0.00017647]
[1733243828791,0.00543835,95668.0,95667.0,0.00117647]
[1733243829249,0.418105,95670.0,95667.0,0.00017647]
[1733243829496,0.418104,95670.0,95667.0,0.00117647]
[1733243829725,0.00550166,95669.0,95667.0,0.00117647]
[1733243829935,0.209056,95668.0,95667.0,0.00117647]
[1733243830161,0.50946859,95668.0,95667.0,0.00117647]
[1733243830385,0.51490497,95668.0,95667.0,0.00117647]
[1733243831282,0.52090497,95668.0,95667.0,0.00217647]
[1733243831717,0.52090497,95668.0,95667.0,0.00117647]
[1733243832686,0.51490497,95668.0,95667.0,0.00017647]
[1733243833385,0.51990497,95668.0,95667.0,0.00217647]
[1733243833821,0.51490497,95668.0,95667.0,0.00117647]
[1733243834287,0.51990497,95668.0,95667.0,0.00217647]
[1733243834923,0.51990497,95668.0,95667.0,0.00117647]
[1733243835165,0.15,95667.0,95632.0,0.209133]
[1733243835426,0.15,95667.0,95617.0,0.2812695]
[1733243835427,0.15,95665.0,95626.0,0.209146]
[1733243835665,0.209124,95638.0,95626.0,0.209146]
[1733243835885,0.418142,95661.0,95630.0,0.209138]
[1733243836099,0.00562956,95637.0,95626.0,0.209146]
[1733243836341,0.209114,95642.0,95626.0,0.209146]
[1733243836580,0.00562607,95636.0,95632.0,0.001]
[1733243836781,0.209124,95637.0,95632.0,0.001]
[1733243837026,0.00562501,95635.0,95632.0,0.00158849]
[1733243837252,0.209114,95642.0,95632.0,0.00158849]
[1733243837253,0.00568963,95636.0,95632.0,0.00158849]
[1733243837477,0.0058521,95635.0,95632.0,0.00158849]
[1733243837927,0.210114,95642.0,95632.0,0.00158849]
[1733243838136,0.209115,95641.0,95632.0,0.00158849]
[1733243838375,0.209115,95641.0,95632.0,0.00105149]
[1733243838376,0.42408814,95641.0,95632.0,0.00105149]
[1733243838593,0.00585814,95641.0,95632.0,0.00058849]
[1733243838784,0.209117,95640.0,95632.0,0.00058849]
[1733243839046,0.209117,95640.0,95632.0,0.00145209]
[1733243839258,0.00586066,95639.0,95632.0,0.00145209]
[1733243839481,0.209121,95638.0,95632.0,0.00141209]
[1733243839917,0.00603967,95637.0,95632.0,0.00141209]
[1733243840170,0.209126,95636.0,95632.0,0.00141209]
[1733243840674,0.418252,95636.0,95632.0,0.00141209]
[1733243840902,0.20913,95634.0,95632.0,0.00141209]
[1733243841330,0.0060299,95633.0,95632.0,0.00141209]
[1733243841780,0.0060299,95633.0,95632.0,0.00241209]
[1733243841991,0.0060299,95633.0,95632.0,0.00141209]
[1733243842207,0.11074249,95633.0,95632.0,0.00141209]
[1733243842419,0.0060299,95633.0,95632.0,0.00141209]
[1733243842888,0.0090299,95633.0,95632.0,0.07981209]
[1733243843339,0.003,95633.0,95632.0,0.07981209]
[1733243846117,0.003,95633.0,95632.0,0.00141209]
[1733243846333,0.212132,95633.0,95632.0,0.00137209]
[1733243846550,0.21826691,95633.0,95622.0,0.0811]
[1733243846822,0.209146,95627.0,95622.0,0.08125391]
[1733243847064,0.209135,95632.0,95622.0,0.08125391]
[1733243847297,0.00618642,95626.0,95622.0,0.29040991]
[1733243847538,0.209135,95632.0,95622.0,0.07701743]
[1733243847781,0.003,95633.0,95619.0,0.209163]
[1733243847782,0.0061181,95625.0,95619.0,0.209163]
[1733243847997,0.001,95633.0,95625.0,0.20915]
[1733243848234,0.002,95633.0,95626.0,0.10656323]
[1733243848440,0.002,95633.0,95630.0,0.209138]
[1733243848743,0.15,95643.0,95633.0,0.418264]
[1733243848935,0.00058461,95643.0,95634.0,0.10656319]
[1733243849140,0.00058461,95643.0,95642.0,0.209113]
[1733243849371,0.00058461,95643.0,95640.0,0.209116]
[1733243849594,0.00058461,95643.0,95640.0,0.418233]
[1733243849813,0.00058461,95643.0,95642.0,0.209113]
[1733243850072,0.00058461,95643.0,95642.0,0.37843591]
[1733243850298,0.00058461,95643.0,95642.0,0.37658559]
[1733243850543,0.00058461,95643.0,95642.0,0.37654559]
[1733243850802,0.00058461,95643.0,95642.0,0.45704559]
[1733243851917,0.00058461,95643.0,95642.0,0.46204559]
[1733243852139,0.00231221,95643.0,95642.0,0.46404559]
[1733243852388,0.00231221,95643.0,95642.0,0.359333]
[1733243853312,0.00231221,95643.0,95642.0,0.15026]
[1733243854142,0.00231221,95643.0,95642.0,0.15022]
[1733243855147,0.00231221,95643.0,95642.0,0.25678303]
[1733243855348,0.00231221,95643.0,95642.0,0.25493259]
[1733243856010,0.00231221,95643.0,95642.0,0.06972]
[1733243856221,0.00231221,95643.0,95642.0,0.007]
[1733243856649,0.00855661,95643.0,95642.0,0.007]
[1733243856874,0.00231221,95643.0,95642.0,0.007]
[1733243857017,0.00818443,95643.0,95642.0,0.007]
[1733243857226,0.00231221,95643.0,95642.0,0.007]
[1733243857645,0.00821848,95643.0,95642.0,0.007]
[1733243858263,0.00821848,95643.0,95642.0,0.00696]
[1733243858479,0.00231221,95643.0,95642.0,0.00696]
[1733243858920,0.00817491,95643.0,95642.0,0.00696]
[1733243859155,0.00231221,95643.0,95642.0,0.00696]
[1733243859300,0.00817385,95643.0,95642.0,0.00696]
[1733243859570,0.00231221,95643.0,95642.0,0.00696]
[1733243859724,0.00817491,95643.0,95642.0,0.00692]
[1733243860868,0.00817491,95643.0,95642.0,0.00492]
[1733243861287,0.01117491,95643.0,95642.0,0.00492]
[1733243861501,0.01117491,95643.0,95632.0,0.0008638]
[1733243861691,0.209113,95642.0,95632.0,0.0008638]
[1733243862123,0.00585196,95641.0,95632.0,0.0008638]
[1733243862812,0.00231221,95643.0,95632.0,0.0008638]
[1733243862813,0.209128,95636.0,95632.0,0.0008638]
[1733243863029,0.209128,95635.0,95632.0,0.0008638]
[1733243863454,0.209132,95633.0,95632.0,0.0008638]
[1733243863659,0.21498184,95633.0,95632.0,0.0008638]
[1733243865176,0.21498184,95633.0,95632.0,0.0018638]
[1733243865792,0.21498184,95633.0,95632.0,0.0008638]
[1733243866238,0.21498184,95633.0,95632.0,0.0028638]
[1733243866430,0.21498184,95633.0,95632.0,0.0008638]
[1733243866853,0.21498184,95633.0,95632.0,0.0028638]
[1733243868159,0.21498184,95633.0,95632.0,0.0008638]
[1733243868428,0.32069443,95633.0,95632.0,0.0008638]
[1733243868626,0.47069443,95633.0,95632.0,0.0008638]
[1733243869258,0.56658867,95633.0,95632.0,0.0008638]
[1733243869528,0.209198,95603.0,95597.0,0.083]
[1733243869953,0.00596845,95602.0,95597.0,0.083]
[1733243870573,0.209202,95601.0,95588.0,0.19977149]
[1733243870872,0.209202,95601.0,95587.0,0.0477]
[1733243871093,0.00596614,95600.0,95588.0,0.00017663]
[1733243871304,0.209207,95599.0,95587.0,0.04727765]
[1733243871749,0.0059493,95598.0,95587.0,0.25650865]
[1733243871963,0.0059493,95598.0,95587.0,0.00012302]
[1733243871964,0.209223,95592.0,95587.0,0.00012302]
[1733243872388,0.00593172,95591.0,95587.0,0.00012302]
[1733243872608,0.00593172,95591.0,95587.0,0.00412302]
[1733243872820,0.15,95603.0,95587.0,0.00112302]
[1733243873033,0.00594528,95590.0,95587.0,0.00112302]
[1733243873245,0.359202,95601.0,95587.0,0.00412302]
[1733243873472,0.209205,95600.0,95588.0,0.0751]
[1733243873717,0.00594671,95600.0,95588.0,0.0751]
[1733243874173,0.00594671,95600.0,95589.0,0.209229]
[1733243874383,0.00594671,95600.0,95589.0,0.418458]
[1733243874651,0.15594671,95600.0,95589.0,0.209229]
[1733243874859,0.002,95591.0,95589.0,0.209229]
[1733243875082,0.002,95592.0,95589.0,0.209229]
[1733243875305,0.209207,95599.0,95589.0,0.209229]
[1733243875518,0.209207,95599.0,95589.0,0.210229]
[1733243875735,0.00594565,95598.0,95589.0,0.209229]
[1733243876304,0.001,95591.0,95589.0,0.215229]
[1733243876424,0.15,95600.0,95588.0,0.0751]
[1733243876425,0.00594565,95597.0,95588.0,0.0751]
[1733243876656,0.15,95600.0,95589.0,0.2100927]
[1733243876909,0.00594883,95596.0,95589.0,0.2120927]
[1733243877219,0.00593723,95599.0,95589.0,0.2120927]
[1733243877385,0.00593829,95595.0,95589.0,0.2120927]
[1733243877611,0.15,95603.0,95593.0,0.20922]
[1733243877859,0.00593723,95594.0,95593.0,0.20922]
[1733243878095,0.15,95603.0,95593.0,0.20922]
[1733243878313,0.209196,95604.0,95590.0,0.209226]
[1733243878314,0.15,95601.0,95590.0,0.209226]
[1733243878549,0.09350571,95653.0,95589.0,0.0008637]
[1733243878550,0.001,95591.0,95589.0,0.0068637]
[1733243878798,0.209226,95590.0,95589.0,0.0008637]
[1733243879004,0.36510079,95590.0,95589.0,0.0008637]
[1733243881468,0.36710079,95590.0,95589.0,0.0008637]
[1733243882101,0.36510079,95590.0,95589.0,0.0008637]
[1733243882619,0.37010079,95590.0,95589.0,0.0008637]
[1733243883071,0.36810079,95590.0,95589.0,0.0008637]
[1733243883315,0.37110079,95590.0,95589.0,0.0008637]
[1733243884210,0.37310079,95590.0,95589.0,0.0008637]
[1733243884426,0.16387479,95590.0,95589.0,0.0008637]
[1733243884682,0.01387479,95590.0,95589.0,0.0008637]
[1733243885238,0.008,95590.0,95589.0,0.0008637]
[1733243885724,0.00573415,95590.0,95589.0,0.0008637]
[1733243885963,0.00673415,95590.0,95589.0,0.0008637]
[1733243886233,0.001,95590.0,95589.0,0.0008637]
[1733243886485,0.00675565,95590.0,95589.0,0.0008637]
[1733243886739,0.001,95590.0,95589.0,0.0008637]
[1733243886991,0.11146738,95590.0,95589.0,0.0008637]
[1733243887194,0.25471259,95590.0,95589.0,0.0008637]
[1733243887446,0.26046844,95590.0,95589.0,0.0008637]
[1733243887701,0.26146844,95590.0,95589.0,0.0008637]
[1733243888171,0.26046844,95590.0,95589.0,0.0008637]
[1733243888377,0.26146844,95590.0,95589.0,0.0008637]
[1733243889971,0.26319684,95590.0,95589.0,0.0008637]
[1733243891719,0.31309684,95590.0,95589.0,0.0008637]
[1733243892484,0.59589684,95590.0,95589.0,0.0008637]
[1733243892723,0.79589684,95590.0,95589.0,0.0008637]
[1733243892966,0.82189684,95590.0,95589.0,0.0008637]
[1733243893445,0.2,95588.0,95587.0,9.2e-07]
[1733243893687,0.75941259,95588.0,95587.0,9.2e-07]
[1733243893925,0.76508809,95588.0,95587.0,9.2e-07]
[1733243894165,0.209259,95575.0,95574.0,0.01986107]
[1733243894413,0.78647159,95575.0,95574.0,0.02003735]
[1733243894652,0.79213201,95575.0,95574.0,0.01184315]
[1733243895165,1.01513201,95575.0,95574.0,0.01184315]
[1733243895419,1.01513201,95575.0,95573.0,6e-05]
[1733243895420,0.6492,95574.0,95573.0,1.5e-07]
[1733243895657,0.75391272,95574.0,95573.0,1.5e-07]
[1733243895900,0.75954694,95574.0,95573.0,1.5e-07]
[1733243897593,0.15,95558.0,95555.0,0.0008636]
[1733243897844,0.35,95556.0,95555.0,0.0008636]
[1733243898103,0.45471259,95556.0,95555.0,0.0008636]
[1733243898308,0.46030518,95556.0,95555.0,0.0008636]
[1733243898547,0.50770518,95556.0,95555.0,0.0008636]
[1733243899308,0.73047377,95556.0,95555.0,6e-07]
[1733243899766,0.73047377,95556.0,95555.0,0.0010006]
[1733243900007,0.73047377,95556.0,95555.0,6e-07]
[1733243900778,0.81987377,95556.0,95555.0,6e-07]
[1733243901021,0.83949159,95546.0,95545.0,1e-07]
[1733243901250,0.35,95537.0,95510.0,0.00023141]
[1733243901488,0.45471259,95537.0,95504.0,0.00023141]
[1733243901746,0.65989272,95537.0,95504.0,0.00023141]
[1733243902228,0.209362,95528.0,95504.0,0.00023141]
[1733243902443,0.25471259,95527.0,95504.0,0.00082065]
[1733243902685,0.209409,95507.0,95504.0,0.00082065]
[1733243902926,0.209388,95517.0,95504.0,0.00082065]
[1733243902927,0.209402,95510.0,95504.0,0.00082065]
[1733243903178,0.00536252,95506.0,95504.0,0.00082065]
[1733243903418,0.209413,95505.0,95504.0,0.00082065]
[1733243903655,0.36477376,95505.0,95504.0,0.00082065]
[1733243905374,0.00536076,95505.0,95492.0,0.081]
[1733243905613,0.00536076,95505.0,95492.0,0.08117681]
[1733243905828,0.00636076,95505.0,95492.0,0.08117681]
[1733243906319,0.00636076,95505.0,95494.0,0.0831]
[1733243906560,0.00636076,95505.0,95503.0,0.0831]
[1733243906806,0.0456,95548.0,95503.0,0.0831]
[1733243907012,0.209373,95524.0,95503.0,0.0831]
[1733243907257,0.209373,95524.0,95505.0,0.209411]
[1733243907497,0.359356,95531.0,95504.0,0.00185305]
[1733243907739,0.31406859,95531.0,95515.0,0.209389]
[1733243907977,0.10471259,95531.0,95516.0,0.0799]
[1733243908485,0.10471259,95530.0,95506.0,0.0757]
[1733243908727,0.209398,95512.0,95506.0,0.0757]
[1733243909261,0.209383,95519.0,95506.0,0.0757]
[1733243909502,0.209391,95515.0,95506.0,0.0757]
[1733243909754,0.15,95529.0,95506.0,0.0757]
[1733243909991,0.15,95525.0,95506.0,0.0757]
[1733243910241,0.001,95512.0,95507.0,0.10656564]
[1733243910482,0.001,95512.0,95511.0,0.370559]
[1733243910728,0.001,95512.0,95511.0,0.47527159]
[1733243910981,0.001,95519.0,95511.0,0.284799]
[1733243911242,0.001,95519.0,95511.0,0.0754]
[1733243911498,0.209384,95518.0,95511.0,0.0754]
[1733243912250,0.209386,95517.0,95511.0,0.0754]
[1733243912475,0.209342,95538.0,95511.0,0.0754]
[1733243912476,0.209397,95513.0,95511.0,0.0754]
[1733243912695,0.15,95533.0,95511.0,0.0754]
[1733243912936,0.209385,95518.0,95512.0,0.06276]
[1733243913426,0.209373,95524.0,95512.0,0.06276]
[1733243913671,0.209375,95522.0,95512.0,0.06276]
[1733243914138,0.209375,95522.0,95512.0,0.06376]
[1733243915104,0.10471259,95532.0,95514.0,0.06276]
[1733243915565,0.209374,95523.0,95514.0,0.06276]
[1733243915810,0.00034108,95522.0,95514.0,0.06276]
[1733243916024,0.00134108,95522.0,95514.0,0.06276]
[1733243916239,0.00134108,95522.0,95511.0,0.0754]
[1733243916240,0.00023144,95521.0,95512.0,0.06276]
[1733243916460,0.00023144,95521.0,95514.0,0.06276]
[1733243916698,0.00023144,95521.0,95516.0,0.06276]
[1733243917139,0.00023144,95521.0,95518.0,0.06276]
[1733243917596,0.00123144,95521.0,95518.0,0.06276]
[1733243918241,0.01085481,95520.0,95518.0,0.06276]
[1733243920682,0.01185481,95520.0,95518.0,0.06276]
[1733243922878,0.01185481,95520.0,95518.0,0.272144]
[1733243923125,0.01185481,95520.0,95518.0,0.06276]
[1733243924261,0.01185481,95520.0,95519.0,0.272142]
[1733243924532,0.01185481,95520.0,95519.0,0.400842]
[1733243925006,0.01085481,95520.0,95519.0,0.400842]
[1733243925477,0.01185481,95520.0,95519.0,0.400842]
[1733243925913,0.01085481,95520.0,95519.0,0.400842]
[1733243926143,0.01185481,95520.0,95519.0,0.361842]
[1733243926382,0.01085481,95520.0,95519.0,0.357842]
[1733243926610,0.01085481,95520.0,95519.0,0.358842]
[1733243926793,0.01185481,95520.0,95519.0,0.358842]
[1733243927038,0.01185481,95520.0,95519.0,0.360842]
[1733243927526,0.01358161,95520.0,95519.0,0.15146]
[1733243927761,0.01358161,95520.0,95519.0,0.06876]
[1733243928227,0.01358161,95520.0,95519.0,0.004]
[1733243928478,0.01258161,95520.0,95509.0,0.06276]
[1733243928712,0.22196161,95520.0,95519.0,0.006]
[1733243928921,0.22296161,95520.0,95519.0,0.006]
[1733243929360,0.22296161,95520.0,95519.0,0.004]
[1733243929607,0.22196161,95520.0,95519.0,0.002]
[1733243930039,0.209408,95507.0,95506.0,0.0008628]
[1733243931392,0.209408,95507.0,95506.0,0.00063136]
[1733243932265,0.209405,95509.0,95506.0,0.00063136]
[1733243932699,0.209396,95513.0,95506.0,0.00063136]
[1733243932906,0.001,95507.0,95506.0,0.00063136]
[1733243933329,0.209405,95509.0,95506.0,0.00063136]
[1733243933567,0.209396,95513.0,95506.0,0.00063136]
[1733243933803,0.01085723,95507.0,95506.0,0.06339136]